Body Name,Body Unit,Service Label ,Service Code,Organisational Unit,Expenditure,Payment Date,Transactional Number ,Net payment,Supplier ID,Supplier Name 
North West Leicestershire District Council ,31UH ,FINPLA,Finance,Financial Planning,Finance Company,25/06/2013,1260067,"2,700,000.00",A012414,Royal Bank Of Scotland
North West Leicestershire District Council ,31UH ,FINPLA,Finance,Financial Planning,HRA subsidy,12/06/2013,1259165,"2,365,384.00",A028518,Department for Communities & Local Government
North West Leicestershire District Council ,31UH ,FINPLA,Finance,Financial Planning,HRA subsidy,12/06/2013,1259166,"2,365,383.00",A028518,Department for Communities & Local Government
North West Leicestershire District Council ,31UH ,FINPLA,Finance,Financial Planning,Policing,12/06/2013,1259235,"495,661.60",A007096,The Office of the Police and Crime Commissioner for Leicestershire
North West Leicestershire District Council ,31UH ,FINPLA,Finance,Financial Planning,Policing,12/06/2013,1259236,"495,661.60",A007096,The Office of the Police and Crime Commissioner for Leicestershire
North West Leicestershire District Council ,31UH ,HRAHRM,Housing Repairs,HRA Housing Repairs & Maintenance,Decent Home Programme - construction ,26/06/2013,1260236,"354,190.47",A039973,Lovell Partnerships Ltd
North West Leicestershire District Council ,31UH ,HRAHRM,Housing Repairs,HRA Housing Repairs & Maintenance,Decent Home Programme - construction ,26/06/2013,1260177,"276,914.53",A039980,Kier Services Maintenance East Ltd
North West Leicestershire District Council ,31UH ,HOFI,Finance,Head of Finance,Training,05/06/2013,1258452,"227,729.31",A000770,Hinckley & Bosworth Borough Council
North West Leicestershire District Council ,31UH ,HRAHRM,Housing Repairs,HRA Housing Repairs & Maintenance,Decent Home Programme - construction ,26/06/2013,1260176,"166,807.69",A039980,Kier Services Maintenance East Ltd
North West Leicestershire District Council ,31UH ,HRAHRM,Housing Repairs,HRA Housing Repairs & Maintenance,Decent Home Programme - construction ,05/06/2013,1258625,"159,641.65",A039980,Kier Services Maintenance East Ltd
North West Leicestershire District Council ,31UH ,ENOT,Street Management,Environment Transport,Vehicle Repairs,05/06/2013,1258198,"115,415.00",A000625,Ford & Slater Group Ltd
North West Leicestershire District Council ,31UH ,ENOT,Street Management,Environment Transport,Vehicle Repairs,05/06/2013,1258447,"114,215.00",A000625,Ford & Slater Group Ltd
North West Leicestershire District Council ,31UH ,HRAHRM,Housing Repairs,HRA Housing Repairs & Maintenance,Decent Home Programme - construction ,05/06/2013,1258623,"58,440.26",A039980,Kier Services Maintenance East Ltd
North West Leicestershire District Council ,31UH ,NACN,Neighbourhoods & Communities,N & C Neighbourhoods,Parish precepts,19/06/2013,1259386,"21,051.43",A021576,Ellistown And Battleflat Parish Council
North West Leicestershire District Council ,31UH ,EXCH,Finance,Exchequer Services,Energy - Gas - Contract 2 + 5 + 6,12/06/2013,1259233,"20,067.30",A035709,Corona Energy Retail 4 Ltd
North West Leicestershire District Council ,31UH ,ENOT,Street Management,Environment Transport,Fuel ,05/06/2013,1258531,"20,050.20",A034942,Pace Petroleum Ltd
North West Leicestershire District Council ,31UH ,ENOT,Street Management,Environment Transport,Fuel ,19/06/2013,1259425,"19,994.02",A034942,Pace Petroleum Ltd
North West Leicestershire District Council ,31UH ,HOFI,Finance,Head of Finance,Training,05/06/2013,1258471,"17,197.00",A000770,Hinckley & Bosworth Borough Council
North West Leicestershire District Council ,31UH ,EXCH,Finance,Exchequer Services,Energy - Gas - Contract 2 + 5 + 6,12/06/2013,1259234,"16,702.70",A035709,Corona Energy Retail 4 Ltd
North West Leicestershire District Council ,31UH ,ESS,Street Management,Environment - Street Scene,Leisure - Playground equipment,12/06/2013,1258213,"14,379.63",A028502,Playdale Playgrounds Ltd
North West Leicestershire District Council ,31UH ,HLC,Leisure Centres,Hermitage Leisure Centre,Leisure - Recreational equipment supplier,05/06/2013,1258751,"14,223.81",A001642,Technogym Uk Limited
North West Leicestershire District Council ,31UH ,HRAHRM,Housing Repairs,HRA Housing Repairs & Maintenance,Decent Home Programme - construction ,26/06/2013,1260050,"11,342.40",A039973,Lovell Partnerships Ltd
North West Leicestershire District Council ,31UH ,ESS,Street Management,Environment - Street Scene,Leisure - Playground equipment,12/06/2013,1258214,"10,489.50",A028502,Playdale Playgrounds Ltd
North West Leicestershire District Council ,31UH ,EES,Environmental Health,Environmental Services,grant payment,05/06/2013,1258517,"9,304.80",A038916,MFW Building Services Ltd
North West Leicestershire District Council ,31UH ,EXCH,Finance,Exchequer Services,Recruitment - Agency Broker,19/06/2013,1259301,"8,863.51",A036958,Comensura Limited
North West Leicestershire District Council ,31UH ,ICT,Information Technology,ICT Services,IT - solutions,26/06/2013,1258982,"8,800.00",A034753,ANS Group Plc
North West Leicestershire District Council ,31UH ,EXCH,Finance,Exchequer Services,Recruitment - Agency Broker,26/06/2013,1259834,"7,855.17",A036958,Comensura Limited
North West Leicestershire District Council ,31UH ,ECCTV,Planning & Development,Environment - Town Centre/CCTV,IT - Telephone and computing,19/06/2013,1259455,"7,396.18",A000233,British Telecommunications Plc
North West Leicestershire District Council ,31UH ,HPLC,Leisure Centres,Hood Park Leisure Centre,Leisure - Recreational equipment supplier,05/06/2013,1258460,"7,111.45",A001642,Technogym Uk Limited
North West Leicestershire District Council ,31UH ,ENOP,Street Management,Environment Parks,Leisure Inspectors,26/06/2013,1259962,"6,913.00",A029902,Public Sector Software Ltd
North West Leicestershire District Council ,31UH ,HRAHRM,Housing Repairs,HRA Housing Repairs & Maintenance,Building Services,12/06/2013,1259218,"6,771.21",A033342,J Tomlinson Ltd
North West Leicestershire District Council ,31UH ,EXCH,Finance,Exchequer Services,Recruitment - Agency Broker,12/06/2013,1258757,"6,351.67",A036958,Comensura Limited
North West Leicestershire District Council ,31UH ,HRAHRM,Housing Repairs,HRA Housing Repairs & Maintenance,Gas & Electricity - Boiler replacement,19/06/2013,1259675,"6,277.68",A031787,Laker BMS Ltd
North West Leicestershire District Council ,31UH ,HLC,Leisure Centres,Hermitage Leisure Centre,Leisure - Recreational equipment supplier,05/06/2013,1258753,"6,222.45",A001642,Technogym Uk Limited
North West Leicestershire District Council ,31UH ,HRAHRM,Housing Repairs,HRA Housing Repairs & Maintenance,Gas & Electricity - Boiler replacement,26/06/2013,1260075,"6,108.75",A031787,Laker BMS Ltd
North West Leicestershire District Council ,31UH ,EES,Environmental Health,Environmental Services,Grants,05/06/2013,1258513,"6,000.00",A039000,Michael Peers Builders
North West Leicestershire District Council ,31UH ,ESS,Street Management,Environment - Street Scene,Environment - Monitoring Equipment - Air Quality,12/06/2013,1258784,"6,000.00",A036596,TRL
North West Leicestershire District Council ,31UH ,EES,Environmental Health,Environmental Services,Plumbing and Heating Services,05/06/2013,1258512,"5,619.00",A031090,Neil North & Associates Ltd
North West Leicestershire District Council ,31UH ,ICT,Information Technology,ICT Services,IT - Telephone and computing,12/06/2013,1258953,"5,241.31",A008908,Virgin Media Business
North West Leicestershire District Council ,31UH ,PROPCL,Property Services,Property Commercial Lettings,Electricity - Supply for contract 4,19/06/2013,1259481,"5,082.52",A034733,British Gas Business
North West Leicestershire District Council ,31UH ,ECCTV,Planning & Development,Environment - Town Centre/CCTV,Security - CCTV secure internet provided transmission & ongoing maintenance,19/06/2013,1259300,"5,004.00",A036404,Fluidata
North West Leicestershire District Council ,31UH ,NACCS,Neighbourhoods & Communities,N & C Community Safety,Partnership payment. ,12/06/2013,1258977,"5,000.00",A032786,Living Without Abuse
North West Leicestershire District Council ,31UH ,PROPFM,Property Services,Property Facilities Management,Lighting - Lighting Gear and Installation for Floodlights,26/06/2013,1259823,"5,000.00",A037955,Charnwood Electrical Limited
North West Leicestershire District Council ,31UH ,EXCH,Finance,Exchequer Services,Catalogue stocks,25/06/2013,1260061,"4,885.02",A000958,ESPO
North West Leicestershire District Council ,31UH ,NACCS,Neighbourhoods & Communities,N & C Community Safety,Parish precepts,05/06/2013,1258502,"4,667.89",A000323,Charnwood Borough Council
North West Leicestershire District Council ,31UH ,ENOT,Street Management,Environment Transport,Horticulture Supplies,26/06/2013,1260006,"4,490.00",A034613,Clovis Lande Associates Ltd
North West Leicestershire District Council ,31UH ,HRAHRM,Housing Repairs,HRA Housing Repairs & Maintenance,Decent Home Programme - construction ,05/06/2013,1258624,"4,453.07",A039980,Kier Services Maintenance East Ltd
North West Leicestershire District Council ,31UH ,ECP,Planning & Development,Environment Community Planning,Service Level Agreement,05/06/2013,1258576,"4,290.00",A036136,Rural Community Council
North West Leicestershire District Council ,31UH ,LDLS,Legal & Democratic,Legal Services,Contracting Practioner/Project Managemen,12/06/2013,1258803,"4,076.00",A040172,Q-Active Ltd
North West Leicestershire District Council ,31UH ,LDLS,Legal & Democratic,Legal Services,Legal services,26/06/2013,1259869,"4,046.00",A000251,Browne Jacobson LLP
North West Leicestershire District Council ,31UH ,ECCTV,Planning & Development,Environment - Town Centre/CCTV,Security - Provide Monitoring Services in respect of CCTV,12/06/2013,1258907,"3,923.00",A038132,Premier Security Services (Midlands) Limited
North West Leicestershire District Council ,31UH ,HRAHRM,Housing Repairs,HRA Housing Repairs & Maintenance,Gas & Electricity - Boiler replacement,26/06/2013,1260098,"3,763.51",A031787,Laker BMS Ltd
North West Leicestershire District Council ,31UH ,HRAHRM,Housing Repairs,HRA Housing Repairs & Maintenance,Fuel servicing (Hsg Maintenance),12/06/2013,1259217,"3,762.39",A035675,Elite Sweep Service
North West Leicestershire District Council ,31UH ,PROPFM,Property Services,Property Facilities Management,Energy - Electricity - Contract 1,12/06/2013,1258960,"3,564.84",A030266,Southern Electric
North West Leicestershire District Council ,31UH ,HRAHRM,Housing Repairs,HRA Housing Repairs & Maintenance,Waste - Tipping building,12/06/2013,1258806,"3,515.40",A035471,Ward Recycling
North West Leicestershire District Council ,31UH ,HRAHRM,Housing Repairs,HRA Housing Repairs & Maintenance,Building Services,19/06/2013,1259758,"3,492.00",A033342,J Tomlinson Ltd
North West Leicestershire District Council ,31UH ,ENOT,Street Management,Environment Transport,Refuse Vehicle Hire (Short Term),12/06/2013,1258936,"3,470.00",A038553,M6 Vehicle Hire
North West Leicestershire District Council ,31UH ,ENOP,Street Management,Environment Parks,Street Supplies - Street Furniture,19/06/2013,1259463,"3,412.00",A033650,Plantscape Ltd
North West Leicestershire District Council ,31UH ,HR,Corporate Director,Human Resources,Leasing - Vehicles,26/06/2013,1260195,"3,024.81",A035549,Arnold Clark Vehicle Management
North West Leicestershire District Council ,31UH ,CS,Communications,Corporate - Customer Services,Mail Services - Franking Machines,19/06/2013,1259478,"3,000.00",A000079,Neopost Limited
North West Leicestershire District Council ,31UH ,NACCS,Neighbourhoods & Communities,N & C Community Safety,grant ,26/06/2013,1259980,"3,000.00",A039843,Women's Aid Leicestershire Ltd
North West Leicestershire District Council ,31UH ,NACCS,Neighbourhoods & Communities,N & C Community Safety,grant ,26/06/2013,1259981,"3,000.00",A039843,Women's Aid Leicestershire Ltd
North West Leicestershire District Council ,31UH ,NACCS,Neighbourhoods & Communities,N & C Community Safety,grant ,26/06/2013,1259982,"3,000.00",A039843,Women's Aid Leicestershire Ltd
North West Leicestershire District Council ,31UH ,FINPLA,Finance,Financial Planning,Housing - Asset register software,12/06/2013,1258900,"3,000.00",A036780,CIPFA Business Limited
North West Leicestershire District Council ,31UH ,ESS,Street Management,Environment - Street Scene,Training - Private Water Supply Regulations,12/06/2013,1258222,"3,000.00",A037505,RH Environmental Limited
North West Leicestershire District Council ,31UH ,HLC,Leisure Centres,Hermitage Leisure Centre,Claim,19/06/2013,1259358,"2,895.00",A027454,Measham Leisure Centre
North West Leicestershire District Council ,31UH ,EES,Environmental Health,Environmental Services,Grant payment,26/06/2013,1260181,"2,809.00",A038469,Leicestershire County Council
North West Leicestershire District Council ,31UH ,HRAHRM,Housing Repairs,HRA Housing Repairs & Maintenance,Housing Maintenance - Replacement Windows and Doors,19/06/2013,1259671,"2,775.94",A036741,SBP Limited (Trading as Plastal & Permadoor)
North West Leicestershire District Council ,31UH ,EES,Environmental Health,Environmental Services,Grant payment,05/06/2013,1258514,"2,749.00",A038469,Leicestershire County Council
North West Leicestershire District Council ,31UH ,EES,Environmental Health,Environmental Services,Plumbing and heating contractors,26/06/2013,1260179,"2,694.00",A000922,C V Lane & Son
North West Leicestershire District Council ,31UH ,HR,Corporate Director,Human Resources,childcare vouchers,19/06/2013,1259254,"2,607.00",A038606,Premier Employer Solutions Limited
North West Leicestershire District Council ,31UH ,EES,Environmental Health,Environmental Services,Grants,05/06/2013,1258516,"2,560.57",A038668,Adaptions
North West Leicestershire District Council ,31UH ,HRAOPS,Housing,HRA Older Persons Service,Alarms - older persons system repairs and maintenance,12/06/2013,1258860,"2,560.00",A001701,Tunstall Healthcare (UK) Limited
North West Leicestershire District Council ,31UH ,HLC,Leisure Centres,Hermitage Leisure Centre,Energy - Electricity - Contract 1,05/06/2013,1258475,"2,556.96",A030266,Southern Electric
North West Leicestershire District Council ,31UH ,HR,Corporate Director,Human Resources,Leasing - Vehicles,26/06/2013,1260194,"2,510.99",A035549,Arnold Clark Vehicle Management
North West Leicestershire District Council ,31UH ,ICT,Information Technology,ICT Services,ICT,05/06/2013,1258610,"2,433.03",A040459,Canon UK Ltd
North West Leicestershire District Council ,31UH ,HRAHRM,Housing Repairs,HRA Housing Repairs & Maintenance,Gas & Electricity - Boiler replacement,05/06/2013,1258663,"2,400.00",A031787,Laker BMS Ltd
North West Leicestershire District Council ,31UH ,CP,Communications,Corporate - Communications,Advertising - Full page advert in B2B green newsletter,05/06/2013,1258295,"2,349.00",A037318,Local Lifestyle Limited
North West Leicestershire District Council ,31UH ,PROPCL,Property Services,Property Commercial Lettings,Parish precepts,19/06/2013,1259303,"2,323.58",A001082,Measham Parish Council
North West Leicestershire District Council ,31UH ,ICT,Information Technology,ICT Services,IT - Telecommunications and data services,19/06/2013,1257239,"2,320.24",A032826,Freedom Communications (UK) Ltd
North West Leicestershire District Council ,31UH ,NACCS,Neighbourhoods & Communities,N & C Community Safety,grant ,26/06/2013,1259979,"2,200.00",A039843,Women's Aid Leicestershire Ltd
North West Leicestershire District Council ,31UH ,NACCS,Neighbourhoods & Communities,N & C Community Safety,grant ,26/06/2013,1259977,"2,200.00",A039843,Women's Aid Leicestershire Ltd
North West Leicestershire District Council ,31UH ,NACCS,Neighbourhoods & Communities,N & C Community Safety,grant ,26/06/2013,1259978,"2,200.00",A039843,Women's Aid Leicestershire Ltd
North West Leicestershire District Council ,31UH ,HPLC,Leisure Centres,Hood Park Leisure Centre,Cleaning & Hygiene Services,19/06/2013,1259346,"2,143.44",A009237,Phs Group Ltd
North West Leicestershire District Council ,31UH ,HRAHRM,Housing Repairs,HRA Housing Repairs & Maintenance,Gas & Electricity - Boiler replacement,19/06/2013,1259553,"2,121.66",A031787,Laker BMS Ltd
North West Leicestershire District Council ,31UH ,NACCS,Neighbourhoods & Communities,N & C Community Safety,Policing,19/06/2013,1259305,"2,000.00",A007096,The Office of the Police and Crime Commissioner for Leicestershire
North West Leicestershire District Council ,31UH ,HR,Corporate Director,Human Resources,Consultancy,05/06/2013,1258532,"1,989.50",A033121,Libby Carter Limited
North West Leicestershire District Council ,31UH ,HPLC,Leisure Centres,Hood Park Leisure Centre,Water - Sewerage services,19/06/2013,1259352,"1,944.47",A001468,Severn Trent Water Limited
North West Leicestershire District Council ,31UH ,HRAHRM,Housing Repairs,HRA Housing Repairs & Maintenance,Housing Maintenance - Replacement Windows and Doors,19/06/2013,1259665,"1,909.91",A036741,SBP Limited (Trading as Plastal & Permadoor)
North West Leicestershire District Council ,31UH ,HR,Corporate Director,Human Resources,Consultancy,19/06/2013,1259322,"1,898.60",A033121,Libby Carter Limited
North West Leicestershire District Council ,31UH ,HLC,Leisure Centres,Hermitage Leisure Centre,Printing - Lot 3,05/06/2013,1258499,"1,850.00",A037245,Wyndeham Gait Limited
North West Leicestershire District Council ,31UH ,PROPCL,Property Services,Property Commercial Lettings,Water - Sewerage services,26/06/2013,1259847,"1,846.98",A001468,Severn Trent Water Limited
North West Leicestershire District Council ,31UH ,ICT,Information Technology,ICT Services,IT - Telecommunications and data services,12/06/2013,1259171,"1,824.58",A032826,Freedom Communications (UK) Ltd
North West Leicestershire District Council ,31UH ,HRAHRM,Housing Repairs,HRA Housing Repairs & Maintenance,Housing Maintenance - Replacement Windows and Doors,19/06/2013,1259666,"1,806.49",A036741,SBP Limited (Trading as Plastal & Permadoor)
North West Leicestershire District Council ,31UH ,ENOT,Street Management,Environment Transport,Waste - Baling wire manufacturers,05/06/2013,1258235,"1,730.00",A032890,DR Baling Wire Manufacturers Ltd
North West Leicestershire District Council ,31UH ,CULTYP,Leisure & Culture,Cultural Services Children & YoungPeople,Grants,05/06/2013,1258601,"1,720.83",A027552,Age Concern Leicestershire & Rutland (Welfare services) ltd
North West Leicestershire District Council ,31UH ,HRAHRM,Housing Repairs,HRA Housing Repairs & Maintenance,Gas & Electricity - Boiler replacement,05/06/2013,1258661,"1,718.51",A031787,Laker BMS Ltd
North West Leicestershire District Council ,31UH ,HRAHM,Housing,HRA Housing Management,Fuel - solid,26/06/2013,1260248,"1,711.02",A031928,Coal4Energy Ltd
North West Leicestershire District Council ,31UH ,ENOT,Street Management,Environment Transport,road Maintenance,12/06/2013,1258522,"1,700.00",A002693,Leicestershire County Counc
North West Leicestershire District Council ,31UH ,HRAHRM,Housing Repairs,HRA Housing Repairs & Maintenance,Gas & Electricity - Boiler replacement,05/06/2013,1258666,"1,688.90",A031787,Laker BMS Ltd
North West Leicestershire District Council ,31UH ,HRAHRM,Housing Repairs,HRA Housing Repairs & Maintenance,Housing Maintenance - Replacement Windows and Doors,19/06/2013,1259669,"1,654.85",A036741,SBP Limited (Trading as Plastal & Permadoor)
North West Leicestershire District Council ,31UH ,ENOT,Street Management,Environment Transport,Road fund licences,12/06/2013,1258945,"1,650.00",A008559,Post Office Limited
North West Leicestershire District Council ,31UH ,ENOP,Street Management,Environment Parks,Environmental & safety products,26/06/2013,1260162,"1,648.00",A000671,Glasdon Manufacturing Limited
North West Leicestershire District Council ,31UH ,HRAHRM,Housing Repairs,HRA Housing Repairs & Maintenance,Gas & Electricity - Boiler replacement,05/06/2013,1258689,"1,645.85",A031787,Laker BMS Ltd
North West Leicestershire District Council ,31UH ,PROPCL,Property Services,Property Commercial Lettings,Mail Supplies -Franking Machine,05/06/2013,1258566,"1,637.55",A008204,Purchase Power
North West Leicestershire District Council ,31UH ,HPLC,Leisure Centres,Hood Park Leisure Centre,Building Services,19/06/2013,1259347,"1,632.46",A001092,John Merison BMC Ltd
North West Leicestershire District Council ,31UH ,PROPFM,Property Services,Property Facilities Management,Legionella Risk Assessments,05/06/2013,1258520,"1,621.00",A037013,Rentokil Initial UK Limited
North West Leicestershire District Council ,31UH ,PROPFM,Property Services,Property Facilities Management,Legionella Risk Assessments,19/06/2013,1259456,"1,621.00",A037013,Rentokil Initial UK Limited
North West Leicestershire District Council ,31UH ,ENOP,Street Management,Environment Parks,Street Supplies - Street Furniture,12/06/2013,1258821,"1,620.00",A033650,Plantscape Ltd
North West Leicestershire District Council ,31UH ,HPLC,Leisure Centres,Hood Park Leisure Centre,Lighting - Flood Lighting,26/06/2013,1259925,"1,561.80",A028616,Christy Lighting Ltd
North West Leicestershire District Council ,31UH ,HPLC,Leisure Centres,Hood Park Leisure Centre,Air Conditioning & Refrigeration,12/06/2013,1258890,"1,514.00",A022180,Complete Cooling Services Ltd
North West Leicestershire District Council ,31UH ,CHEX,Chief Exec,Chief Executive,professional charges,26/06/2013,1260193,"1,489.11",A039356,Broadsted Associates Ltd
North West Leicestershire District Council ,31UH ,HLC,Leisure Centres,Hermitage Leisure Centre,Water - Sewerage services,19/06/2013,1259326,"1,479.23",A001468,Severn Trent Water Limited
North West Leicestershire District Council ,31UH ,HRAHM,Housing,HRA Housing Management,Water - Sewerage services,26/06/2013,1260255,"1,450.45",A001468,Severn Trent Water Limited
North West Leicestershire District Council ,31UH ,HRAHRM,Housing Repairs,HRA Housing Repairs & Maintenance,Gas & Electricity - Boiler replacement,19/06/2013,1259556,"1,440.00",A031787,Laker BMS Ltd
North West Leicestershire District Council ,31UH ,HPLC,Leisure Centres,Hood Park Leisure Centre,Leisure - Recreational equipment supplier,12/06/2013,1258618,"1,423.77",A001642,Technogym Uk Limited
North West Leicestershire District Council ,31UH ,HLC,Leisure Centres,Hermitage Leisure Centre,Alarms - Fire and Security,19/06/2013,1259374,"1,376.00",A000021,ADT Fire And Security
North West Leicestershire District Council ,31UH ,EES,Environmental Health,Environmental Services,Building Services,05/06/2013,1258515,"1,375.00",A001092,John Merison BMC Ltd
North West Leicestershire District Council ,31UH ,ECP,Planning & Development,Environment Community Planning,Training,12/06/2013,1258956,"1,372.92",A000770,Hinckley & Bosworth Borough Council
North West Leicestershire District Council ,31UH ,PROPFM,Property Services,Property Facilities Management,Gas / Electricity Boiler Repair Work,26/06/2013,1260058,"1,368.00",A000510,AD Smith & Son (Nottm) Ltd
North West Leicestershire District Council ,31UH ,PROPCL,Property Services,Property Commercial Lettings,"Telephone systems - maintenance/programming software, Whitwick Bus Cntr",26/06/2013,1260055,"1,350.00",A015548,GCS Communications
North West Leicestershire District Council ,31UH ,ENOT,Street Management,Environment Transport,Electricians,05/06/2013,1258477,"1,326.00",A000548,Electract Limited
North West Leicestershire District Council ,31UH ,ENOGT,Street Management,Environment General Technician,Animals - Boarding Kennels,26/06/2013,1260253,"1,324.07",A000385,College Garth Boarding Kennels
North West Leicestershire District Council ,31UH ,HRAHM,Housing,HRA Housing Management,Fuel - solid,19/06/2013,1259315,"1,294.31",A031928,Coal4Energy Ltd
North West Leicestershire District Council ,31UH ,HPLC,Leisure Centres,Hood Park Leisure Centre,Energy - Electricity - Contract 1,19/06/2013,1259351,"1,287.37",A030266,Southern Electric
North West Leicestershire District Council ,31UH ,HRAHM,Housing,HRA Housing Management,Legionella Risk Assessments,12/06/2013,1258813,"1,276.50",A037013,Rentokil Initial UK Limited
North West Leicestershire District Council ,31UH ,FINPLA,Finance,Financial Planning,Housing - Asset register software,12/06/2013,1258899,"1,200.00",A036780,CIPFA Business Limited
North West Leicestershire District Council ,31UH ,HRAOPS,Housing,HRA Older Persons Service,Water - Sewerage services,26/06/2013,1259894,"1,169.74",A001468,Severn Trent Water Limited
North West Leicestershire District Council ,31UH ,HRAHM,Housing,HRA Housing Management,Legionella Risk Assessments,19/06/2013,1259479,"1,165.78",A037013,Rentokil Initial UK Limited
North West Leicestershire District Council ,31UH ,ENOT,Street Management,Environment Transport,Vehicle Services,05/06/2013,1258219,"1,149.30",A035291,Mertrux Ltd
North West Leicestershire District Council ,31UH ,HRAHRM,Housing Repairs,HRA Housing Repairs & Maintenance,PPE,12/06/2013,1258991,"1,108.79",A009933,Westbury Industrial Supplies Limited
North West Leicestershire District Council ,31UH ,FINPLA,Finance,Financial Planning,Subscriptions,12/06/2013,1258901,"1,100.00",A000110,Audit Commission
North West Leicestershire District Council ,31UH ,HRAHM,Housing,HRA Housing Management,"ICT - Software, Maintenance and Licenses for IBS Housing",26/06/2013,1259390,"1,088.32",A002968,Capita Business Services Ltd
North West Leicestershire District Council ,31UH ,ICT,Information Technology,ICT Services,Security Systems - Fire Detection,05/06/2013,1257145,"1,077.93",A028261,TECSERV UK LIMITED
North West Leicestershire District Council ,31UH ,EXCH,Finance,Exchequer Services,Debt Collection,26/06/2013,1259994,"1,047.74",A004468,Kings Armoured Security Services Ltd
North West Leicestershire District Council ,31UH ,HPLC,Leisure Centres,Hood Park Leisure Centre,Water - Sewerage services,19/06/2013,1259353,"1,019.00",A001468,Severn Trent Water Limited
North West Leicestershire District Council ,31UH ,HPLC,Leisure Centres,Hood Park Leisure Centre,Water - Sewerage services,19/06/2013,1259354,"1,019.00",A001468,Severn Trent Water Limited
North West Leicestershire District Council ,31UH ,HRAHRM,Housing Repairs,HRA Housing Repairs & Maintenance,Gas & Electricity - Boiler replacement,12/06/2013,1259010,"1,006.25",A031787,Laker BMS Ltd
North West Leicestershire District Council ,31UH ,EDC,Planning & Development,Environment - Development Control,Advertising Agency,05/06/2013,1258574,"1,004.43",A001395,Euro RSCG People T/A Havas People Ltd
North West Leicestershire District Council ,31UH ,HRAHRM,Housing Repairs,HRA Housing Repairs & Maintenance,Gas & Electricity - Boiler replacement,05/06/2013,1258678,993.30,A031787,Laker BMS Ltd
North West Leicestershire District Council ,31UH ,HRAHRM,Housing Repairs,HRA Housing Repairs & Maintenance,Gas & Electricity - Boiler replacement,26/06/2013,1260138,979.13,A031787,Laker BMS Ltd
North West Leicestershire District Council ,31UH ,HRAHM,Housing,HRA Housing Management,Energy - Electricity - Contract 1,19/06/2013,1259319,968.95,A030266,Southern Electric
North West Leicestershire District Council ,31UH ,ECCTV,Planning & Development,Environment - Town Centre/CCTV,Energy - Electricity - Contract 1,19/06/2013,1259460,968.50,A030266,Southern Electric
North West Leicestershire District Council ,31UH ,HRAHRM,Housing Repairs,HRA Housing Repairs & Maintenance,Gas & Electricity - Boiler replacement,12/06/2013,1259002,967.68,A031787,Laker BMS Ltd
North West Leicestershire District Council ,31UH ,HRAHRM,Housing Repairs,HRA Housing Repairs & Maintenance,Decent Home Programme - construction ,26/06/2013,1260049,954.23,A039980,Kier Services Maintenance East Ltd
North West Leicestershire District Council ,31UH ,EDC,Planning & Development,Environment - Development Control,Advertising Agency,05/06/2013,1258575,948.08,A001395,Euro RSCG People T/A Havas People Ltd
North West Leicestershire District Council ,31UH ,EXCH,Finance,Exchequer Services,IT - software services,12/06/2013,1258768,945.00,A025004,Consilium Technologies
North West Leicestershire District Council ,31UH ,ENOT,Street Management,Environment Transport,Gas - Heating,05/06/2013,1258480,935.33,A032686,Calor Gas Limited
North West Leicestershire District Council ,31UH ,HRAHRM,Housing Repairs,HRA Housing Repairs & Maintenance,Gas & Electricity - Boiler replacement,19/06/2013,1259546,932.52,A031787,Laker BMS Ltd
North West Leicestershire District Council ,31UH ,EXCH,Finance,Exchequer Services,IT - software services,05/06/2013,1258748,931.82,A010859,Selima Limited
North West Leicestershire District Council ,31UH ,HPLC,Leisure Centres,Hood Park Leisure Centre,Leisure - Swimwear and accessories,26/06/2013,1259934,928.80,A001833,Zoggs International Ltd
North West Leicestershire District Council ,31UH ,HRAHRM,Housing Repairs,HRA Housing Repairs & Maintenance,Gas & Electricity - Boiler replacement,19/06/2013,1259680,870.69,A031787,Laker BMS Ltd
North West Leicestershire District Council ,31UH ,HRAHRM,Housing Repairs,HRA Housing Repairs & Maintenance,Gas & Electricity - Boiler replacement,19/06/2013,1259674,869.62,A031787,Laker BMS Ltd
North West Leicestershire District Council ,31UH ,HRAHRM,Housing Repairs,HRA Housing Repairs & Maintenance,Gas & Electricity - Boiler replacement,05/06/2013,1258626,866.63,A031787,Laker BMS Ltd
North West Leicestershire District Council ,31UH ,HRAHRM,Housing Repairs,HRA Housing Repairs & Maintenance,Gas & Electricity - Boiler replacement,05/06/2013,1258662,861.96,A031787,Laker BMS Ltd
North West Leicestershire District Council ,31UH ,ENOT,Street Management,Environment Transport,road Maintenance,05/06/2013,1258521,850.00,A002693,Leicestershire County Counc
North West Leicestershire District Council ,31UH ,EDC,Planning & Development,Environment - Development Control,Subscriptions - Development Control Services,05/06/2013,1258227,845.00,A035826,Haymarket Media Group
North West Leicestershire District Council ,31UH ,HRAHRM,Housing Repairs,HRA Housing Repairs & Maintenance,Housing Maintenance - Replacement Windows and Doors,19/06/2013,1259667,844.10,A036741,SBP Limited (Trading as Plastal & Permadoor)
North West Leicestershire District Council ,31UH ,CULTEV,Leisure & Culture,Cultural Services Arts & Events,Events - Toilets for Picnic in the Park,26/06/2013,1260197,805.00,A036990,UKLoos.com
North West Leicestershire District Council ,31UH ,ICT,Information Technology,ICT Services,Photocopiers and consumables,12/06/2013,1259161,804.88,A001301,The Danwood Group Ltd
North West Leicestershire District Council ,31UH ,HPBC,Leisure Centres,Hood Park Bar and Catering,Catering Supplies - Confectionery.,26/06/2013,1259950,804.28,A001264,Palmer Harvey Mclane Ltd
North West Leicestershire District Council ,31UH ,HRAHRM,Housing Repairs,HRA Housing Repairs & Maintenance,Gas & Electricity - Boiler replacement,05/06/2013,1258659,801.55,A031787,Laker BMS Ltd
North West Leicestershire District Council ,31UH ,ENOT,Street Management,Environment Transport,Vehicle Services,05/06/2013,1258448,790.20,A035291,Mertrux Ltd
North West Leicestershire District Council ,31UH ,HRAHRM,Housing Repairs,HRA Housing Repairs & Maintenance,Gas & Electricity - Boiler replacement,05/06/2013,1258632,786.00,A031787,Laker BMS Ltd
North West Leicestershire District Council ,31UH ,HRAHRM,Housing Repairs,HRA Housing Repairs & Maintenance,Gas & Electricity - Boiler replacement,12/06/2013,1259001,782.66,A031787,Laker BMS Ltd
North West Leicestershire District Council ,31UH ,ENOT,Street Management,Environment Transport,Vehicle Repairs - Road Sweepers,26/06/2013,1259895,768.76,A001445,Scarab Sweepers Limited
North West Leicestershire District Council ,31UH ,HPLC,Leisure Centres,Hood Park Leisure Centre,Leisure - Swimwear and accessories,26/06/2013,1259933,766.80,A001833,Zoggs International Ltd
North West Leicestershire District Council ,31UH ,HRAHRM,Housing Repairs,HRA Housing Repairs & Maintenance,Gas & Electricity - Boiler replacement,26/06/2013,1260135,764.28,A031787,Laker BMS Ltd
North West Leicestershire District Council ,31UH ,ENOT,Street Management,Environment Transport,Building Services,05/06/2013,1258411,754.00,A001625,T & T Construction
North West Leicestershire District Council ,31UH ,HRAHRM,Housing Repairs,HRA Housing Repairs & Maintenance,Gas & Electricity - Boiler replacement,26/06/2013,1260141,747.50,A031787,Laker BMS Ltd
North West Leicestershire District Council ,31UH ,EES,Environmental Health,Environmental Services,Water - Sewerage services,26/06/2013,1260254,724.15,A001468,Severn Trent Water Limited
North West Leicestershire District Council ,31UH ,HRAHRM,Housing Repairs,HRA Housing Repairs & Maintenance,PPE,05/06/2013,1258621,716.17,A009933,Westbury Industrial Supplies Limited
North West Leicestershire District Council ,31UH ,HRAHRM,Housing Repairs,HRA Housing Repairs & Maintenance,Gas & Electricity - Boiler replacement,19/06/2013,1259706,713.00,A031787,Laker BMS Ltd
North West Leicestershire District Council ,31UH ,HRAHRM,Housing Repairs,HRA Housing Repairs & Maintenance,Gas & Electricity - Boiler replacement,12/06/2013,1259000,695.70,A031787,Laker BMS Ltd
North West Leicestershire District Council ,31UH ,HRAHM,Housing,HRA Housing Management,Energy Survey,26/06/2013,1259821,680.00,A039091,Energico
North West Leicestershire District Council ,31UH ,HPLC,Leisure Centres,Hood Park Leisure Centre,Leisure - Recreational equipment supplier,12/06/2013,1258560,677.84,A001642,Technogym Uk Limited
North West Leicestershire District Council ,31UH ,HRAHRM,Housing Repairs,HRA Housing Repairs & Maintenance,Gas & Electricity - Boiler replacement,05/06/2013,1258685,667.00,A031787,Laker BMS Ltd
North West Leicestershire District Council ,31UH ,EES,Environmental Health,Environmental Services,Training,19/06/2013,1259330,658.74,A000770,Hinckley & Bosworth Borough Council
North West Leicestershire District Council ,31UH ,HR,Corporate Director,Human Resources,Medical fees,05/06/2013,1258456,658.50,A031645,Forge Health Limited
North West Leicestershire District Council ,31UH ,PROPCL,Property Services,Property Commercial Lettings,IT - Telephone and computing,12/06/2013,1258966,657.22,A000233,British Telecommunications Plc
North West Leicestershire District Council ,31UH ,HRAHRM,Housing Repairs,HRA Housing Repairs & Maintenance,Gas & Electricity - Boiler replacement,26/06/2013,1260072,650.00,A031787,Laker BMS Ltd
North West Leicestershire District Council ,31UH ,CULTEV,Leisure & Culture,Cultural Services Arts & Events,Events - Street Entertainer,26/06/2013,1260196,650.00,A035242,Lil' Miss Pod
North West Leicestershire District Council ,31UH ,HLC,Leisure Centres,Hermitage Leisure Centre,Leisure - Recreational equipment supplier,19/06/2013,1258429,639.59,A001642,Technogym Uk Limited
North West Leicestershire District Council ,31UH ,ENOT,Street Management,Environment Transport,Fuel ,19/06/2013,1259426,637.44,A034942,Pace Petroleum Ltd
North West Leicestershire District Council ,31UH ,ENOT,Street Management,Environment Transport,Fuel ,05/06/2013,1258478,628.57,A034942,Pace Petroleum Ltd
North West Leicestershire District Council ,31UH ,HRAHRM,Housing Repairs,HRA Housing Repairs & Maintenance,Professional fees,26/06/2013,1260172,627.50,A034964,Mansfield Mediation Ltd
North West Leicestershire District Council ,31UH ,HRAHRM,Housing Repairs,HRA Housing Repairs & Maintenance,Professional fees,26/06/2013,1260173,627.50,A034964,Mansfield Mediation Ltd
North West Leicestershire District Council ,31UH ,HRAHM,Housing,HRA Housing Management,Seminar,12/06/2013,1258844,625.00,A014371,The East Midlands TP Forum
North West Leicestershire District Council ,31UH ,HRAHRM,Housing Repairs,HRA Housing Repairs & Maintenance,Gas & Electricity - Gas installation ,19/06/2013,1259551,622.33,A026237,British Gas Trading Limited
North West Leicestershire District Council ,31UH ,HRAHRM,Housing Repairs,HRA Housing Repairs & Maintenance,Gas & Electricity - Gas installation ,19/06/2013,1259552,622.33,A026237,British Gas Trading Limited
North West Leicestershire District Council ,31UH ,HRAHRM,Housing Repairs,HRA Housing Repairs & Maintenance,Gas & Electricity - Gas installation ,26/06/2013,1260090,622.33,A026237,British Gas Trading Limited
North West Leicestershire District Council ,31UH ,HR,Corporate Director,Human Resources,Criminal Records Checks,12/06/2013,1259170,616.00,A027625,Criminal Records Bureau T/A The Disclosure & Barring Service
North West Leicestershire District Council ,31UH ,ENOGT,Street Management,Environment General Technician,Small civils and plant hire,26/06/2013,1260027,615.50,A000438,Cuckoo Gap Limited
North West Leicestershire District Council ,31UH ,HRAHM,Housing,HRA Housing Management,Energy Survey,26/06/2013,1259849,612.00,A039091,Energico
North West Leicestershire District Council ,31UH ,HRAHRM,Housing Repairs,HRA Housing Repairs & Maintenance,Gas & Electricity - Boiler replacement,19/06/2013,1259561,610.25,A031787,Laker BMS Ltd
North West Leicestershire District Council ,31UH ,HRAHRM,Housing Repairs,HRA Housing Repairs & Maintenance,Gas & Electricity - Boiler replacement,26/06/2013,1260102,609.70,A031787,Laker BMS Ltd
North West Leicestershire District Council ,31UH ,CS,Communications,Corporate - Customer Services,Mail services - Postage,19/06/2013,1259477,604.94,A000743,DX Network Services Limited
North West Leicestershire District Council ,31UH ,HRAHRM,Housing Repairs,HRA Housing Repairs & Maintenance,Gas & Electricity - Boiler replacement,19/06/2013,1259544,597.82,A031787,Laker BMS Ltd
North West Leicestershire District Council ,31UH ,HLBC,Leisure Centres,Hermitage Bar & Catering,Catering Supplies - Confectionery.,19/06/2013,1259335,593.61,A001264,Palmer Harvey Mclane Ltd
North West Leicestershire District Council ,31UH ,HRAHRM,Housing Repairs,HRA Housing Repairs & Maintenance,Gas & Electricity - Boiler replacement,05/06/2013,1258642,592.25,A031787,Laker BMS Ltd
North West Leicestershire District Council ,31UH ,HPLC,Leisure Centres,Hood Park Leisure Centre,Leisure - Swimming teachers/badges,12/06/2013,1258255,587.50,A001616,Swimming Teachers Association Ltd
North West Leicestershire District Council ,31UH ,HRAHRM,Housing Repairs,HRA Housing Repairs & Maintenance,Gas & Electricity - Boiler replacement,19/06/2013,1259709,586.50,A031787,Laker BMS Ltd
North West Leicestershire District Council ,31UH ,HRAHRM,Housing Repairs,HRA Housing Repairs & Maintenance,Gas & Electricity - Boiler replacement,12/06/2013,1259054,580.00,A031787,Laker BMS Ltd
North West Leicestershire District Council ,31UH ,ENOGT,Street Management,Environment General Technician,Small civils and plant hire,26/06/2013,1260023,575.65,A000438,Cuckoo Gap Limited
North West Leicestershire District Council ,31UH ,HRAHRM,Housing Repairs,HRA Housing Repairs & Maintenance,Gas & Electricity - Boiler replacement,05/06/2013,1258686,541.65,A031787,Laker BMS Ltd
North West Leicestershire District Council ,31UH ,HRAPBS,Housing,HRA Performance & Business Support,Printing Services,12/06/2013,1258779,532.73,A025384,Wilpbond Limited t/a Prontaprint
North West Leicestershire District Council ,31UH ,ENOP,Street Management,Environment Parks,Grounds Maintenance - Landscaping Tools,12/06/2013,1258792,532.38,A030744,Groundsman Tools & Supplies
North West Leicestershire District Council ,31UH ,HR,Corporate Director,Human Resources,Opticians - Eyetests,05/06/2013,1258197,525.00,A028625,Specsavers Corporate Eyecare
North West Leicestershire District Council ,31UH ,HRAHM,Housing,HRA Housing Management,Accommodation - Hotel,12/06/2013,1258276,525.00,A010779,Primrose Hotels Ltd T/A Hermitage Park Hotel
North West Leicestershire District Council ,31UH ,HRAHM,Housing,HRA Housing Management,Accommodation - Hotel,12/06/2013,1258278,525.00,A010779,Primrose Hotels Ltd T/A Hermitage Park Hotel
North West Leicestershire District Council ,31UH ,CDCC,Leisure Centres,Castle Donington Community College,Portable accommodation,19/06/2013,1259361,522.58,A005413,Elliott Group Limited
North West Leicestershire District Council ,31UH ,HLC,Leisure Centres,Hermitage Leisure Centre,Coaches - Open Top,05/06/2013,1258594,520.00,A017327,Roberts Coaches Limited
North West Leicestershire District Council ,31UH ,PROPCL,Property Services,Property Commercial Lettings,Rental/Maintenance charges,05/06/2013,1258482,516.05,A032630,Pitney Bowes Finance Plc
North West Leicestershire District Council ,31UH ,ENOT,Street Management,Environment Transport,Hydraulic repairs,05/06/2013,1258546,512.62,A001131,Mobile Hydraulics Ltd
North West Leicestershire District Council ,31UH ,PROPFM,Property Services,Property Facilities Management,Gas / Electricity Boiler Repair Work,26/06/2013,1260057,512.00,A000510,AD Smith & Son (Nottm) Ltd
North West Leicestershire District Council ,31UH ,ENOP,Street Management,Environment Parks,Horticulture - Maintenance Services,12/06/2013,1258940,509.64,A001392,Rigby Taylor Limited
North West Leicestershire District Council ,31UH ,HRAHRM,Housing Repairs,HRA Housing Repairs & Maintenance,Gas & Electricity - Boiler replacement,26/06/2013,1260077,509.45,A031787,Laker BMS Ltd
North West Leicestershire District Council ,31UH ,HRAHRM,Housing Repairs,HRA Housing Repairs & Maintenance,Gas & Electricity - Boiler replacement,26/06/2013,1260134,508.57,A031787,Laker BMS Ltd
North West Leicestershire District Council ,31UH ,EXCH,Finance,Exchequer Services,Advertising Agency,05/06/2013,1258450,503.98,A001395,Euro RSCG People T/A Havas People Ltd
,,,,,,,,"10,458,261.98",,
